bitfinex/quotes_BTCUSD_20230901
["timestamp","ask_amount","ask_price","bid_price","bid_amount"]
[1693579708437,0.20432,25776.0,25769.0,0.0025]
[1693579708438,0.20432,25771.0,25769.0,0.0025]
[1693579708659,0.66676591,25771.0,25769.0,0.0025]
[1693579708884,0.80014591,25771.0,25770.0,0.009998]
[1693579709106,0.93246591,25771.0,25770.0,0.009998]
[1693579709334,0.88814591,25771.0,25770.0,0.009998]
[1693579709563,0.0940458,25771.0,25763.0,1.23224203]
[1693579709794,0.23122593,25770.0,25764.0,0.38708678]
[1693579710025,0.02,25768.0,25764.0,0.04192149]
[1693579710244,0.20827354,25770.0,25767.0,0.2401]
[1693579710440,0.2158668,25770.0,25763.0,0.2629]
[1693579710655,0.08,25770.0,25763.0,0.2629]
[1693579710871,0.08,25770.0,25757.0,0.13692]
[1693579710872,0.04,25762.0,25757.0,0.13692]
[1693579711087,0.27452053,25757.0,25756.0,0.06977916]
[1693579711337,0.15483471,25757.0,25756.0,0.1]
[1693579711561,0.15483471,25757.0,25754.0,0.06]
[1693579711562,0.54192149,25757.0,25754.0,0.06]
[1693579711774,0.02979673,25759.0,25755.0,0.04]
[1693579711987,0.05079673,25768.0,25763.0,0.02]
[1693579712196,0.05079673,25768.0,25765.0,0.02]
[1693579712412,0.02979673,25768.0,25765.0,0.005]
[1693579712647,0.035,25770.0,25761.0,0.2679]
[1693579712648,0.02979673,25764.0,25761.0,0.2679]
[1693579712868,0.43188351,25764.0,25763.0,0.002]
[1693579713073,0.04479673,25764.0,25763.0,0.002]
[1693579713284,0.02979673,25764.0,25763.0,0.002]
[1693579713499,0.02979673,25767.0,25763.0,0.002]
[1693579713716,0.02,25752.0,25750.0,0.03915]
[1693579713934,0.02,25752.0,25750.0,0.0005]
[1693579713935,0.61640831,25751.0,25750.0,0.0005]
[1693579714148,0.61640831,25751.0,25750.0,0.01377909]
[1693579714149,0.44052442,25751.0,25750.0,0.01377909]
[1693579714360,0.42052442,25751.0,25750.0,0.00877909]
[1693579714574,0.02979673,25753.0,25747.0,0.001823]
[1693579714788,0.02979673,25753.0,25750.0,0.38708678]
[1693579715005,0.12,25762.0,25747.0,0.041823]
[1693579715006,0.08568062,25759.0,25753.0,0.00411611]
[1693579715264,0.08568062,25759.0,25754.0,0.78202149]
[1693579715513,0.02,25764.0,25751.0,0.01115787]
[1693579715514,0.02979673,25756.0,25751.0,0.01115787]
[1693579715734,0.04979673,25760.0,25755.0,0.00411611]
[1693579715955,0.04979673,25760.0,25756.0,0.15483471]
[1693579715956,0.4527674,25760.0,25756.0,0.15483471]
[1693579716167,0.06568062,25760.0,25757.0,0.3]
[1693579716383,0.06568062,25760.0,25757.0,0.45483471]
[1693579716605,0.02,25754.0,25749.0,0.31543611]
[1693579716834,0.08568062,25752.0,25750.0,0.24224794]
[1693579717053,0.08568062,25752.0,25744.0,0.019998]
[1693579717054,0.08568062,25748.0,25744.0,0.019998]
[1693579717275,0.11911826,25748.0,25744.0,0.019998]
[1693579717499,0.50620504,25748.0,25744.0,0.019998]
[1693579717722,0.50620504,25748.0,25747.0,0.24426163]
[1693579717941,0.57213154,25748.0,25747.0,0.001823]
[1693579718172,0.5502274,25748.0,25747.0,0.001823]
[1693579718388,0.4727674,25748.0,25747.0,0.22278646]
[1693579718612,0.08568062,25748.0,25747.0,0.001823]
[1693579718830,0.4727674,25748.0,25747.0,0.22423381]
[1693579719091,0.4727674,25748.0,25747.0,0.25213783]
[1693579719317,0.5087674,25748.0,25747.0,0.017058]
[1693579719569,0.5287674,25748.0,25747.0,0.23956377]
[1693579719819,0.5647674,25748.0,25747.0,0.005823]
[1693579720068,0.5287674,25748.0,25747.0,0.005823]
[1693579720324,1.14210504,25748.0,25747.0,0.012508]
[1693579720552,0.26568062,25745.0,25744.0,0.019998]
[1693579720770,1.35200504,25745.0,25744.0,0.019998]
[1693579720976,1.4965799,25745.0,25744.0,0.019998]
[1693579721193,1.6568999,25745.0,25744.0,0.019998]
[1693579721404,1.6568999,25745.0,25740.0,0.0001]
[1693579721405,0.26568062,25741.0,25740.0,0.0001]
[1693579721651,0.68620504,25741.0,25740.0,0.0001]
[1693579721872,0.01588389,25736.0,25730.0,0.28468069]
[1693579722103,0.02979673,25740.0,25735.0,0.2401]
[1693579722327,0.02979673,25740.0,25736.0,0.15483471]
[1693579722559,0.02979673,25744.0,25736.0,0.15483471]
[1693579722782,0.11188389,25745.0,25739.0,0.02411611]
[1693579722783,0.036,25745.0,25739.0,0.02411611]
[1693579723035,0.036,25745.0,25743.0,0.00411611]
[1693579723248,0.06979673,25750.0,25745.0,0.00411611]
[1693579723488,0.02979673,25753.0,25747.0,0.00411611]
[1693579723700,0.02979673,25753.0,25748.0,0.8481376]
[1693579723923,0.06979673,25757.0,25752.0,0.00411611]
[1693579724134,0.06979673,25760.0,25755.0,0.02411611]
[1693579724345,0.06979673,25760.0,25756.0,0.54192149]
[1693579724566,0.02979673,25760.0,25757.0,0.30404951]
[1693579724794,0.2409,25769.0,25757.0,0.30404951]
[1693579724795,0.04,25764.0,25758.0,0.848071]
[1693579725030,0.04979673,25766.0,25758.0,0.848071]
[1693579725031,0.02940873,25766.0,25762.0,0.00404951]
[1693579725250,0.03595049,25768.0,25763.0,0.545971]
[1693579725251,0.04,25768.0,25763.0,0.545971]
[1693579725477,0.09595049,25770.0,25764.0,0.6021]
[1693579725687,0.09595049,25770.0,25765.0,0.54192149]
[1693579725906,0.09595049,25770.0,25765.0,0.15483471]
[1693579725907,0.07595049,25769.0,25765.0,0.15483471]
[1693579726134,0.02,25775.0,25774.0,0.06]
[1693579726349,0.02,25775.0,25774.0,0.21483471]
[1693579726571,0.06,25783.0,25774.0,0.21483471]
[1693579726572,0.02,25776.0,25775.0,0.04]
[1693579726832,0.02,25777.0,25776.0,0.02]
[1693579727055,0.02,25778.0,25777.0,0.02]
[1693579727290,0.23836,25786.0,25774.0,0.54192149]
[1693579727291,0.02,25780.0,25778.0,0.02]
[1693579727505,0.02,25780.0,25779.0,0.56192149]
[1693579727932,0.02,25780.0,25779.0,0.40708678]
[1693579728201,0.02,25780.0,25779.0,0.37185587]
[1693579728420,0.02,25780.0,25779.0,0.104962]
[1693579728637,0.056,25780.0,25779.0,0.49204878]
[1693579728852,0.02,25780.0,25779.0,0.49204878]
[1693579729060,0.02,25780.0,25779.0,0.51204878]
[1693579729284,0.041,25780.0,25779.0,0.51404878]
[1693579729497,0.077,25780.0,25779.0,0.51704878]
[1693579729718,0.10455463,25780.0,25779.0,0.089962]
[1693579729931,0.10455463,25780.0,25779.0,0.106962]
[1693579729932,0.041,25780.0,25779.0,0.106962]
[1693579730149,0.08955463,25780.0,25779.0,0.088962]
[1693579730367,0.47664141,25780.0,25779.0,0.088962]
[1693579730594,0.85478678,25780.0,25776.0,0.02]
[1693579730803,0.02,25777.0,25776.0,0.02]
[1693579731257,0.02,25777.0,25776.0,0.08]
[1693579731700,0.62440141,25777.0,25776.0,0.06]
[1693579731915,0.62440141,25777.0,25763.0,1.03]
[1693579731916,0.4057,25774.0,25767.0,0.04]
[1693579732128,0.08,25775.0,25766.0,0.04]
[1693579732129,0.4057,25772.0,25766.0,0.04]
[1693579732349,0.41464141,25773.0,25761.0,0.04]
[1693579732350,0.4857,25769.0,25761.0,0.04]
[1693579732567,0.41464141,25771.0,25758.0,0.04]
[1693579732568,0.89278678,25766.0,25758.0,0.04]
[1693579732784,0.88034141,25765.0,25759.0,0.04]
[1693579732999,0.02755463,25765.0,25759.0,0.04]
[1693579733258,0.02755463,25765.0,25762.0,0.04]
[1693579733480,0.11532,25772.0,25765.0,0.06]
[1693579733481,0.136,25772.0,25765.0,0.06]
[1693579733716,0.38708678,25772.0,25766.0,0.15483471]
[1693579733932,0.05999776,25775.0,25768.0,0.058]
[1693579733933,0.16199776,25775.0,25768.0,0.058]
[1693579734146,0.16199776,25775.0,25769.0,0.15483471]
[1693579734391,0.02,25770.0,25769.0,0.15483471]
[1693579734657,0.02,25773.0,25771.0,0.058]
[1693579734880,0.02,25773.0,25771.0,0.19283471]
[1693579735088,0.02,25773.0,25772.0,0.058]
[1693579735299,0.02,25774.0,25773.0,0.038]
[1693579735717,0.05999776,25775.0,25772.0,0.058]
[1693579735718,0.02,25773.0,25772.0,0.058]
[1693579736151,0.05999776,25775.0,25774.0,0.058]
[1693579736359,0.05999776,25775.0,25774.0,0.44508678]
[1693579736587,0.05999776,25775.0,25774.0,0.058]
[1693579737033,0.02,25774.0,25773.0,0.059]
[1693579737240,0.02,25774.0,25773.0,0.058]
[1693579738334,0.02,25772.0,25771.0,0.058]
[1693579739195,0.02,25771.0,25770.0,0.058]
[1693579740238,0.1,25770.0,25769.0,0.155304]
[1693579740448,0.92034141,25770.0,25769.0,0.155304]
[1693579740665,0.4857,25765.0,25757.0,0.058]
[1693579740909,0.02755463,25764.0,25759.0,0.058]
[1693579741115,0.02755463,25764.0,25760.0,0.058]
[1693579741542,0.102,25768.0,25761.0,0.44508678]
[1693579741756,0.2654,25771.0,25764.0,0.058]
[1693579741966,0.55999776,25775.0,25767.0,0.02]
[1693579741967,0.04,25773.0,25767.0,0.02]
[1693579742206,0.015,25771.0,25768.0,0.15483471]
[1693579742627,0.04,25773.0,25767.0,0.02]
[1693579742837,0.102,25774.0,25768.0,0.15483471]
[1693579743045,0.02,25770.0,25769.0,0.02]
[1693579743249,0.11999776,25775.0,25769.0,0.02]
[1693579743470,0.02,25770.0,25769.0,0.17483471]
[1693579743680,0.38708678,25774.0,25770.0,0.23048752]
[1693579743912,0.02,25771.0,25770.0,0.38532223]
[1693579744117,0.4057,25770.0,25765.0,0.02]
[1693579744331,0.1736,25773.0,25768.0,0.02]
[1693579744332,0.056,25773.0,25768.0,0.02]
[1693579744539,0.036,25773.0,25768.0,0.02]
[1693579744754,0.036,25773.0,25770.0,0.24216953]
[1693579744961,0.02,25771.0,25768.0,0.02]
[1693579745168,0.02,25773.0,25768.0,0.02]
[1693579745377,0.02,25770.0,25768.0,0.17483471]
[1693579745593,0.02,25771.0,25770.0,0.058]
[1693579745819,0.05999776,25775.0,25773.0,0.02]
[1693579745820,0.07999776,25775.0,25773.0,0.02]
[1693579746040,0.07999776,25775.0,25774.0,0.02]
[1693579746248,0.07999776,25775.0,25774.0,0.23458086]
[1693579746472,0.07999776,25775.0,25774.0,0.27263257]
[1693579747352,0.02,25772.0,25770.0,0.02]
[1693579747566,0.056,25770.0,25769.0,0.02]
[1693579747788,0.06355463,25770.0,25768.0,0.101]
[1693579747998,0.47464141,25769.0,25768.0,0.1]
[1693579748208,0.98522141,25769.0,25768.0,0.1]
[1693579748429,0.06,25765.0,25754.0,0.1861]
[1693579748667,0.06,25765.0,25748.0,0.07956]
[1693579748668,0.04,25762.0,25756.0,0.018]
[1693579748902,0.04,25762.0,25742.0,0.0402719]
[1693579748903,0.06,25755.0,25740.0,1.3021]
[1693579749127,0.06,25755.0,25743.0,0.1861]
[1693579749128,0.06,25748.0,25743.0,0.1861]
[1693579749361,0.02755463,25752.0,25741.0,0.27443036]
[1693579749362,0.06,25744.0,25741.0,0.27443036]
[1693579749600,0.02755463,25743.0,25742.0,0.38708678]
[1693579749808,0.06,25747.0,25742.0,0.38708678]
[1693579750265,0.02,25748.0,25742.0,0.38708678]
[1693579750266,0.088,25748.0,25742.0,0.38708678]
[1693579750495,0.088,25748.0,25743.0,0.54192149]
[1693579750712,0.028,25748.0,25743.0,0.54192149]
[1693579750931,0.028,25748.0,25743.0,0.58040814]
[1693579751150,0.028,25748.0,25744.0,0.42557343]
[1693579751365,0.02,25754.0,25744.0,1.62767343]
[1693579751366,0.06,25754.0,25744.0,1.62767343]
[1693579751584,0.08,25754.0,25747.0,0.3021]
[1693579751795,0.08,25754.0,25748.0,0.54192149]
[1693579752235,0.06,25755.0,25748.0,0.54192149]
[1693579752449,0.036,25754.0,25749.0,0.70918678]
[1693579752656,0.02,25757.0,25750.0,0.54192149]
[1693579752657,0.06,25757.0,25750.0,0.54192149]
[1693579752863,0.06,25756.0,25750.0,0.54192149]
[1693579753074,0.06,25755.0,25750.0,0.54192149]
[1693579753280,0.035,25754.0,25750.0,0.54192149]
[1693579753495,0.06,25758.0,25751.0,0.38708678]
[1693579753753,0.06,25759.0,25752.0,0.15483471]
[1693579753965,0.08,25758.0,25753.0,0.38708678]
[1693579754204,0.021,25754.0,25753.0,0.38708678]
[1693579754411,0.06,25753.0,25748.0,0.003]
[1693579754615,0.06,25753.0,25743.0,0.5]
[1693579754616,0.06,25753.0,25751.0,0.2740269]
[1693579754830,0.06,25753.0,25751.0,0.2750269]
[1693579755033,0.06,25753.0,25751.0,0.2740269]
[1693579755245,0.16,25751.0,25750.0,0.003]
[1693579755455,0.1,25747.0,25738.0,1.912]
[1693579755668,0.1,25747.0,25739.0,0.38708678]
[1693579756099,0.1501,25751.0,25739.0,0.38708678]
[1693579756100,0.1,25744.0,25739.0,0.38708678]
[1693579756331,0.08,25743.0,25739.0,0.38708678]
[1693579756544,0.08,25739.0,25735.0,0.2049]
[1693579756761,0.08,25737.0,25732.0,0.01580981]
[1693579756970,0.08,25737.0,25733.0,0.38708678]
[1693579757405,0.08,25737.0,25732.0,0.01580981]
[1693579757406,0.1,25733.0,25732.0,0.01580981]
[1693579757862,0.1,25725.0,25724.0,0.0028]
[1693579758096,0.96599399,25725.0,25724.0,0.0028]
[1693579758307,0.89169399,25725.0,25724.0,0.0028]
[1693579758561,0.07890721,25722.0,25721.0,0.01011979]
[1693579758779,0.13890721,25722.0,25721.0,0.01011979]
[1693579759009,0.17390721,25722.0,25721.0,0.20203339]
[1693579759236,0.97658271,25722.0,25721.0,0.00511979]
[1693579759465,0.46454678,25722.0,25720.0,0.0001]
[1693579759692,0.46454678,25722.0,25710.0,1.0]
[1693579759693,0.06,25721.0,25710.0,1.0]
[1693579759917,0.38708678,25720.0,25717.0,0.015818]
[1693579760163,0.0675,25721.0,25717.0,0.005818]
[1693579760378,0.38708678,25720.0,25717.0,0.16065271]
[1693579760595,0.38708678,25719.0,25717.0,0.005818]
[1693579760805,0.07188,25723.0,25717.0,0.005818]
[1693579761023,0.38708678,25723.0,25718.0,0.15483471]
[1693579761240,0.1743,25726.0,25718.0,0.15483471]
[1693579761241,0.036,25720.0,25718.0,0.15483471]
[1693579761481,0.036,25722.0,25719.0,0.38708678]
[1693579761723,0.036,25722.0,25717.0,0.005818]
[1693579761969,0.036,25719.0,25718.0,0.54192149]
[1693579762180,0.036,25719.0,25718.0,0.1998]
[1693579762390,0.036,25719.0,25717.0,0.007818]
[1693579762613,0.036,25723.0,25717.0,0.005818]
[1693579762825,0.06,25716.0,25710.0,0.69895365]
[1693579763053,0.42708678,25715.0,25711.0,0.27926375]
[1693579763283,0.38708678,25715.0,25711.0,0.23032933]
[1693579763508,0.036,25722.0,25712.0,0.54192149]
[1693579763729,0.036,25722.0,25715.0,0.12]
[1693579763948,0.029,25720.0,25718.0,0.003]
[1693579764176,0.029,25720.0,25719.0,0.54192149]
[1693579764397,0.1543,25730.0,25719.0,0.54192149]
[1693579764622,0.036,25723.0,25720.0,0.02]
[1693579764865,0.08,25736.0,25723.0,0.04]
[1693579765076,0.08,25736.0,25722.0,0.06]
[1693579765077,0.02,25730.0,25724.0,0.54192149]
[1693579765320,0.04,25729.0,25724.0,0.54192149]
[1693579765735,0.1512,25739.0,25724.0,0.54192149]
[1693579765736,0.02,25731.0,25724.0,0.54192149]
[1693579765957,0.1,25736.0,25725.0,0.68708678]
[1693579766166,0.031,25730.0,25728.0,0.38708678]
[1693579766373,0.02,25736.0,25729.0,0.45483471]
[1693579766606,0.02,25736.0,25730.0,0.54192149]
[1693579766814,0.02,25736.0,25731.0,0.3]
[1693579767031,0.02,25736.0,25731.0,0.68708678]
[1693579767943,0.06,25731.0,25724.0,0.07878]
[1693579768155,0.1,25733.0,25725.0,0.38708678]
[1693579768363,0.339,25742.0,25731.0,0.037]
[1693579768364,0.0298046,25732.0,25731.0,0.037]
[1693579768579,0.0278046,25732.0,25731.0,0.54192149]
[1693579768797,0.0308046,25732.0,25731.0,0.72408678]
[1693579769258,0.0328046,25732.0,25731.0,0.76108678]
[1693579769473,0.04,25738.0,25732.0,0.27311906]
[1693579769687,0.06,25739.0,25733.0,0.42156976]
[1693579769953,0.06,25736.0,25733.0,0.42156976]
[1693579770166,0.06,25736.0,25731.0,0.397]
[1693579770167,0.06,25735.0,25731.0,0.097]
[1693579770378,0.1,25734.0,25731.0,0.097]
[1693579770592,0.1,25732.0,25731.0,0.097]
[1693579770793,0.49008678,25732.0,25731.0,0.097]
[1693579771222,0.102,25732.0,25731.0,0.097]
[1693579771437,0.48708678,25732.0,25731.0,0.06]
[1693579771653,1.16144678,25732.0,25731.0,0.051]
[1693579771864,1.04373343,25732.0,25731.0,0.088]
[1693579772079,0.1,25732.0,25731.0,0.023]
[1693579772292,0.1,25733.0,25731.0,0.023]
[1693579772495,0.005,25732.0,25731.0,0.29847297]
[1693579772707,0.003,25732.0,25731.0,0.26147297]
[1693579772986,0.003,25732.0,25731.0,0.06]
[1693579773202,0.003,25732.0,25731.0,0.44708678]
[1693579773616,0.003,25732.0,25731.0,0.68616656]
[1693579773861,0.1,25733.0,25731.0,0.64916656]
[1693579774076,0.048,25732.0,25731.0,0.65878617]
[1693579774303,0.024,25732.0,25731.0,0.025]
[1693579774510,0.1,25733.0,25731.0,0.27139247]
[1693579774718,0.48908678,25732.0,25731.0,0.06]
[1693579774933,0.55934678,25732.0,25731.0,0.097]
[1693579775169,0.105,25732.0,25731.0,0.097]
[1693579775392,0.1,25733.0,25731.0,0.22555297]
[1693579775630,0.1,25732.0,25731.0,0.22755297]
[1693579775853,0.1,25732.0,25731.0,0.051]
[1693579776279,0.1,25732.0,25731.0,0.041]
[1693579777205,0.1,25732.0,25731.0,0.29363748]
[1693579777251,0.1,25732.0,25731.0,0.42808678]
[1693579777254,0.1,25732.0,25731.0,0.63085994]
[1693579777256,0.1,25732.0,25731.0,0.60285994]
[1693579777469,0.105,25732.0,25731.0,0.67685994]
[1693579777738,0.105,25732.0,25731.0,0.3440206]
[1693579778276,0.005,25732.0,25731.0,0.68513531]
[1693579778533,0.105,25732.0,25731.0,0.73092733]
[1693579779197,0.105,25732.0,25731.0,0.34384055]
[1693579779818,0.105,25732.0,25731.0,0.087]
[1693579781217,0.4057,25740.0,25731.0,0.087]
[1693579781218,0.08,25735.0,25731.0,0.62892149]
[1693579781220,0.08,25736.0,25731.0,0.47408678]
[1693579781713,0.08,25735.0,25732.0,0.54192149]
[1693579781714,0.08,25735.0,25732.0,0.38708678]
[1693579782487,0.08,25735.0,25731.0,0.28718396]
[1693579782743,0.08,25735.0,25732.0,0.38708678]
[1693579783006,0.075,25736.0,25732.0,0.38708678]
[1693579783250,0.075,25735.0,25733.0,0.24192462]
[1693579783521,0.02,25736.0,25734.0,0.38708678]
[1693579783522,0.095,25736.0,25734.0,0.38708678]
[1693579783739,0.075,25735.0,25734.0,0.38708678]
[1693579783946,0.015,25739.0,25734.0,0.84192149]
[1693579784152,0.0714,25750.0,25735.0,0.84192149]
[1693579784153,0.08,25742.0,25735.0,0.84192149]
[1693579784359,0.08,25742.0,25736.0,0.5597]
[1693579784360,0.035,25741.0,25736.0,0.5597]
[1693579784574,0.035,25741.0,25737.0,0.3]
[1693579784816,0.015,25742.0,25738.0,0.38708678]
[1693579785027,0.035,25741.0,25738.0,0.54192149]
[1693579785239,0.035,25741.0,25738.0,0.38708678]
[1693579785446,0.035,25741.0,25739.0,0.229553]
[1693579785657,0.055,25743.0,25740.0,0.38708678]
[1693579785864,0.055,25744.0,25740.0,0.54192149]
[1693579786151,0.055,25743.0,25740.0,0.54192149]
[1693579786354,0.055,25743.0,25740.0,0.38708678]
[1693579786355,0.035,25742.0,25740.0,0.38708678]
[1693579786777,0.055,25746.0,25740.0,0.38708678]
[1693579786989,0.055,25745.0,25741.0,0.15483471]
[1693579787191,0.075,25744.0,25742.0,0.38708678]
[1693579787412,0.035,25741.0,25739.0,0.23791119]
[1693579787618,0.055,25743.0,25740.0,0.38708678]
[1693579787829,0.055,25747.0,25740.0,0.38708678]
[1693579788040,0.055,25745.0,25741.0,0.15483471]
[1693579788254,0.055,25744.0,25742.0,0.38708678]
[1693579788454,0.02,25746.0,25742.0,0.38708678]
[1693579788678,0.055,25750.0,25743.0,0.70333471]
[1693579788887,0.055,25749.0,25744.0,0.38708678]
[1693579789089,0.055,25749.0,25745.0,0.84192149]
[1693579789297,0.055,25749.0,25745.0,0.54192149]
[1693579789515,0.08,25750.0,25745.0,0.54192149]
[1693579789516,0.055,25750.0,25745.0,0.54192149]
[1693579789722,0.075,25749.0,25745.0,0.54192149]
[1693579789963,0.075,25749.0,25745.0,0.38708678]
[1693579790176,0.055,25749.0,25745.0,0.38708678]
[1693579790397,0.06,25752.0,25747.0,0.38708678]
[1693579790617,0.055,25753.0,25748.0,0.15483471]
[1693579790834,0.055,25753.0,25749.0,0.38708678]
[1693579791035,0.055,25751.0,25749.0,0.54192149]
[1693579791263,0.055,25751.0,25749.0,0.38708678]
[1693579791483,0.055,25752.0,25750.0,0.38708678]
[1693579791689,0.055,25753.0,25750.0,0.38708678]
[1693579791890,0.055,25754.0,25750.0,0.54192149]
[1693579792090,0.055,25756.0,25751.0,0.38708678]
[1693579792300,0.055,25755.0,25752.0,0.15483471]
[1693579792560,0.06,25756.0,25754.0,0.38708678]
[1693579792561,0.055,25756.0,25754.0,0.38708678]
[1693579792766,0.055,25756.0,25754.0,0.54192149]
[1693579792969,0.0748,25758.0,25754.0,0.54192149]
[1693579793370,0.0198,25758.0,25755.0,0.38708678]
[1693579793840,0.055,25756.0,25755.0,0.38708678]
[1693579794045,0.055,25756.0,25755.0,0.65969961]
[1693579794660,0.055,25756.0,25755.0,0.38208678]
[1693579794863,0.0948,25758.0,25755.0,0.38208678]
[1693579795057,0.055,25756.0,25755.0,0.65627178]
[1693579795306,0.055,25756.0,25755.0,0.40408678]
[1693579795435,0.055,25756.0,25755.0,0.61984623]
[1693579795841,0.055,25756.0,25755.0,0.59784623]
[1693579796047,0.0748,25758.0,25755.0,0.38208678]
[1693579796253,0.055,25757.0,25755.0,0.62691482]
[1693579796460,0.0198,25758.0,25755.0,0.41908678]
[1693579796669,0.0198,25758.0,25756.0,0.38708678]
[1693579797727,0.0198,25758.0,25756.0,0.36948678]
[1693579797931,0.0198,25758.0,25756.0,0.40648678]
[1693579798340,0.0198,25758.0,25757.0,0.2109943]
[1693579798547,0.0198,25758.0,25757.0,0.59808108]
[1693579798763,0.0198,25758.0,25757.0,0.61186329]
[1693579799382,0.0198,25758.0,25757.0,0.38708678]
[1693579799601,0.1622,25765.0,25757.0,0.38708678]
[1693579799602,0.04,25768.0,25757.0,0.91080149]
[1693579799814,0.055,25766.0,25761.0,0.3022]
[1693579800045,0.055,25766.0,25762.0,0.84192149]
[1693579800254,0.0198,25767.0,25762.0,0.86192149]
[1693579801116,0.0198,25767.0,25763.0,0.25640694]
[1693579801342,0.055,25766.0,25763.0,0.64349372]
[1693579801542,0.03298688,25774.0,25769.0,0.025]
[1693579801757,0.075,25779.0,25772.0,0.525]
[1693579801956,0.075,25779.0,25773.0,0.3]
[1693579801957,0.075,25776.0,25773.0,0.3]
[1693579802190,0.075,25776.0,25773.0,0.45483471]
[1693579802398,0.075,25776.0,25774.0,0.38708678]
[1693579802615,0.02,25779.0,25775.0,1.44e-05]
[1693579802616,0.075,25779.0,25775.0,1.44e-05]
[1693579802814,0.095,25779.0,25775.0,0.15421448]
[1693579803445,0.00025197,25781.0,25777.0,0.38708678]
[1693579803679,0.0598,25785.0,25780.0,0.38708678]
[1693579803680,0.1148,25785.0,25780.0,0.38708678]
[1693579803936,0.075,25784.0,25781.0,0.68928678]
[1693579804127,0.075,25784.0,25781.0,0.38708678]
[1693579804128,0.075,25783.0,25781.0,0.38708678]
[1693579804335,0.075,25782.0,25781.0,0.38708678]
[1693579804965,0.0398,25785.0,25781.0,0.38708678]
[1693579805245,0.0948,25785.0,25782.0,0.15420008]
[1693579805402,0.0198,25785.0,25782.0,0.54128686]
[1693579805613,0.0198,25785.0,25784.0,0.3022]
[1693579805837,0.0948,25785.0,25784.0,0.38708678]
[1693579806025,0.0948,25785.0,25784.0,0.59978849]
[1693579806225,0.0948,25785.0,25784.0,0.38708678]
[1693579806526,0.0948,25785.0,25784.0,0.66661381]
[1693579806728,0.0948,25785.0,25784.0,0.03848525]
[1693579806729,0.1748,25785.0,25784.0,0.03848525]
[1693579806914,0.04,25782.0,25781.0,0.037]
[1693579807130,0.075,25782.0,25781.0,0.037]
[1693579807415,0.075,25782.0,25781.0,0.38708678]
[1693579807640,0.1148,25785.0,25784.0,0.23567824]
[1693579807900,0.0198,25785.0,25784.0,0.38708678]
[1693579808104,0.0948,25785.0,25784.0,0.5857138]
[1693579808798,0.0198,25785.0,25784.0,0.54128686]
[1693579809021,0.07,25789.0,25784.0,0.68708678]
[1693579809177,0.07,25789.0,25786.0,0.38708678]
[1693579809385,0.035,25790.0,25786.0,0.54128686]
[1693579809646,0.07,25789.0,25786.0,0.54128686]
[1693579809857,0.07,25792.0,25787.0,0.38708678]
[1693579810089,0.035,25790.0,25788.0,0.15420008]
[1693579810307,0.07,25790.0,25789.0,0.38708678]
[1693579810917,0.02,25791.0,25789.0,0.38708678]
[1693579810918,0.07,25791.0,25789.0,0.38708678]
[1693579811461,0.07,25791.0,25790.0,0.20757263]
[1693579811678,0.01413229,25789.0,25786.0,0.04]
[1693579811904,0.0198,25798.0,25786.0,0.04]
[1693579811905,0.07,25797.0,25790.0,0.15872717]
[1693579812233,0.18064704,25791.0,25790.0,0.07726021]
[1693579812579,0.18064704,25791.0,25786.0,0.04]
[1693579812580,0.22064704,25791.0,25789.0,0.322]
[1693579812795,0.22064704,25791.0,25790.0,0.08668147]
[1693579813005,0.22064704,25791.0,25790.0,0.47376825]
[1693579813213,0.22064704,25791.0,25790.0,0.46456387]
[1693579813836,0.15564704,25791.0,25790.0,0.38708678]
[1693579814048,0.22064704,25791.0,25790.0,0.47304986]
[1693579814466,0.22064704,25791.0,25790.0,0.51004986]
[1693579814891,0.0998,25798.0,25794.0,0.52]
[1693579814892,0.01949123,25798.0,25794.0,0.52]
[1693579815095,0.065,25800.0,25796.0,0.38708678]
[1693579815311,0.065,25800.0,25797.0,0.75640008]
[1693579815499,0.065,25800.0,25798.0,0.38708678]
[1693579815744,0.065,25800.0,25798.0,0.54128686]
[1693579815962,0.0438,25801.0,25798.0,0.54128686]
[1693579816176,0.02030571,25801.0,25799.0,0.45420008]
[1693579816394,0.02030571,25801.0,25800.0,0.38708678]
[1693579816602,0.02030571,25801.0,25800.0,0.68708678]
[1693579817448,0.02030571,25801.0,25800.0,0.98928678]
[1693579817653,0.0198,25803.0,25800.0,0.98928678]
[1693579817654,0.0198,25803.0,25800.0,1.06194678]
[1693579817896,0.0198,25803.0,25801.0,0.38708678]
[1693579818106,0.065,25809.0,25802.0,0.93708678]
[1693579818322,0.065,25809.0,25803.0,0.54128686]
[1693579818511,0.0397,25810.0,25807.0,0.3022]
[1693579818512,0.0197,25810.0,25807.0,0.3022]
[1693579818757,0.0197,25810.0,25808.0,0.54128686]
[1693579819190,0.31554118,25807.0,25805.0,0.7557]
[1693579819400,0.31554118,25807.0,25806.0,0.38708678]
[1693579819613,0.37258514,25807.0,25804.0,1.938]
[1693579819821,0.065,25805.0,25801.0,0.2557]
[1693579820037,0.21983471,25804.0,25802.0,0.38708678]
[1693579820487,0.065,25804.0,25802.0,0.38708678]
[1693579820697,0.065,25804.0,25801.0,0.15507]
[1693579820900,0.21983471,25804.0,25801.0,0.15507]
[1693579821108,0.065,25804.0,25801.0,0.15507]
[1693579821317,0.065,25804.0,25802.0,0.3]
[1693579821536,0.065,25804.0,25802.0,0.68708678]
[1693579821754,0.065,25804.0,25802.0,0.72408678]
[1693579821962,0.085,25804.0,25803.0,0.09918847]